Cogmind - Beta 11 @@@ ROGUE MODE // 2022.04.10 @ 13:59:51 Player: Jim Result: Destroyed by G-47 Trooper with Particle Gun Performance ------------- Evolutions (2) 1000 Regions Visited (3) 600 Robots Destroyed (34) 170 Value Destroyed (1052) 1052 Prototype IDs (1) 20 Alien Tech Used (0) 0 Bonus (58) 58 TOTAL SCORE: 2900 Bonus ------- High Alert Combat Kills 58 Cogmind --------- Core Integrity 0/550 Matter 162/400 Energy 100/100 System Corruption 5% Temperature Cool (9) Movement Core (550) Ox10 Location -8/Materials Parts ------- > --- POWER (1) -------- (None) > --- PROPULSION (2) --- (None) > --- UTILITY (5) ------ Small Storage Unit Large Storage Unit Medium Matter Pod Terrain Scanner Improved Targeting Computer > --- WEAPON (3) ------- Minigun > --- INVENTORY (15) --- Heavy Ion Engine Wheel Large Storage Unit Particle Cannon Autogun Peak State ------------ > --- POWER ------------ Nuclear Core > --- PROPULSION ------- Wheel Compact Wheel > --- UTILITY ---------- Large Storage Unit Terrain Scanner Improved Targeting Computer Power Shielding > --- WEAPON ----------- Autogun Autogun High-powered Shotgun > --- INVENTORY -------- Heavy Ion Engine Light Treads Light Treads Small Storage Unit Large Storage Unit Medium Matter Pod Particle Cannon Autogun Shotgun Improved Assault Rifle Minigun Grenade Launcher Improved Grenade Launcher [Rating: 19] Favorites ----------- Power Ion Engine Engine Ion Engine Power Core Nuclear Core Propulsion Wheel Treads Light Treads Leg Aluminum Leg Wheel Wheel Utility Power Shielding Device Sensor Array Storage Large Storage Unit Processor Improved Targeting Computer Protection Power Shielding Weapon Autogun Energy Gun Small Laser Ballistic Gun Autogun Launcher Grenade Launcher Build | -11 -10 -9 -8 ------- Run | Scr Mat Mat Mat Slots Evolved 4 | . . 2 2 Power . | . . . . Propulsion . | . . . . Utility 3 | . . 2 1 Weapon 1 | . . . 1 Parts Attached 33 | 3 6 7 17 Power 1 | . . . 1 Engine . | . . . . Core 1 | . . . 1 Reactor . | . . . . Propulsion 7 | 2 . 2 3 Treads 2 | . . . 2 Leg . | . . . . Wheel 5 | 2 . 2 1 Hover . | . . . . Flight . | . . . . Utility 10 | . 3 3 4 Device 3 | . . 2 1 Storage 3 | . 1 . 2 Processor 1 | . . . 1 Hackware . | . . . . Protection 3 | . 2 1 . Artifact . | . . . . Weapon 15 | 1 3 2 9 Energy Gun . | . . . . Energy Cannon . | . . . . Ballistic Gun 11 | 1 3 1 6 Ballistic Cannon . | . . . . Launcher 4 | . . 1 3 Special Weapon . | . . . . Impact Weapon . | . . . . Slashing Weapon . | . . . . Piercing Weapon . | . . . . Special Melee Weapon . | . . . . Unidentified Prototypes 1 | . . . 1 Parts Lost 19 | . . 2 17 Power 2 | . . . 2 Propulsion 7 | . . 2 5 Utility 3 | . . . 3 Weapon 7 | . . . 7 Highest Loss Streak 13 | . . 1 13 To Critical Strikes . | . . . . Average Slot Usage (%) 90 | . 92 87 89 Engine 11 | . 14 11 6 Wheel 21 | . 28 18 14 Device 6 | . . 12 8 Storage 12 | . 14 11 10 Processor 1 | . . . 7 Protection 10 | . 7 11 13 Ballistic Gun 24 | . 27 20 24 Naked Turns . | . . . . Heaviest Build 39 | 13 36 36 39 Greatest Support 26 | 26 26 26 26 Greatest Overweight (x) 12 | 4 1 3 12 Average Overweight (x) . | . . 1 1 Largest Inventory Capacity 15 | 8 15 15 15 Average Capacity 12 | 8 8 15 15 Most Carried 15 | 6 10 12 15 Average Carried 10 | 6 8 11 12 Final Capacity 15 | 8 15 15 15 Final Carried 12 | 6 10 12 5 Class Distribution -------------------- 78% | Mutant 16% | Tank 4% | Gunner Dominant Class ---------------- Mutant | -10/Materials Mutant | -9/Materials Tank | -8/Materials Resources | -11 -10 -9 -8 ----------- Run | Scr Mat Mat Mat Matter Collected 970 | 194 154 402 220 Remotely . | . . . . Salvage Created 964 | . 158 375 431 Parts 52 | . 6 22 24 Haulers Intercepted . | . . . . Recyclers Shooed 1 | . . 1 . Parts Field Recycled . | . . . . Retrieved Matter . | . . . . Parts Self-Destructed . | . . . . Prevented . | . . . . Kills | -11 -10 -9 -8 ------- Run | Scr Mat Mat Mat Combat Hostiles Destroyed 29 | . 2 10 17 Guns 16 | . 2 5 9 AOE 13 | . . 5 8 Classes Destroyed 10 | . 2 2 6 Worker 1 | . . 1 . Builder 1 | . . . 1 Recycler 2 | . 1 . 1 Watcher 1 | . . . 1 Swarmer 8 | . . . 8 Grunt 12 | . 2 7 3 Brawler 1 | . . . 1 Sentry 5 | . . 3 2 Specialist 2 | . . . 2 Heavy 1 | . . . 1 Best Kill Streak 12 | . 3 6 12 Combat Bots Only 11 | . 2 5 11 Max Kills in Single Turn 3 | . 1 2 3 Gunslinging 1 | . . . 1 Exploded 2 | . . 2 2 Melee . | . . . . Uniques/NPCs Destroyed . | . . . . Combat | -11 -10 -9 -8 -------- Run | Scr Mat Mat Mat Damage Taken 2709 | . 52 404 2253 Core 656 | . 15 90 551 Absorbed by Shields . | . . . . Redirected to Shielding 51 | . . 10 41 Core Remaining (%) 90 | 100 94 77 . Volleys Fired 68 | . 11 28 29 Largest 3 | . 2 2 3 Hottest 82 | . 46 46 82 Shots Fired 144 | . 22 50 72 Gun 130 | . 22 44 64 Cannon . | . . . . Launcher 14 | . . 6 8 Special . | . . . . Kinetic 130 | . 22 44 64 Thermal . | . . . . Explosive 14 | . . 6 8 Electromagnetic . | . . . . Robot Hit Streak 10 | . 7 7 10 Robot Miss Streak 2 | . 1 2 2 Penetration Max . | . . . . Secondary Targets 5 | . 1 1 3 Max Gunslinging Chain 1 | . 1 1 1 Shots Hit Robots 89 | . 12 28 49 Core Hits 62 | . 4 22 36 Critical Kills 1 | . 1 . . Critical Parts Destroyed 2 | . . 1 1 Critical Strikes 3 | . 1 1 1 Destroy 3 | . 1 1 1 Melee Attacks . | . . . . Impact . | . . . . Slashing . | . . . . Piercing . | . . . . Sneak Attacks . | . . . . Combat Hostiles . | . . . . Follow-up Attacks . | . . . . Damage Inflicted 2819 | . 187 694 1938 Guns 1288 | . 187 337 764 Cannons . | . . . . Explosions 1531 | . . 357 1174 Melee . | . . . . Ramming . | . . . . Kinetic 1288 | . 187 337 764 Thermal . | . . . . Explosive 1531 | . . 357 1174 Electromagnetic . | . . . . Impact . | . . . . Slashing . | . . . . Piercing . | . . . . Highest Corruption 5 | . . . 5 Average Corruption 4 | . . . 4 Corruption Purged . | . . . . Corruption Blocked . | . . . . Effects 2 | . . . 2 Heat Flow Errors 1 | . . . 1 Weapon Failures 1 | . . . 1 Overload Shots . | . . . . Overflow Damage 28 | . . . 28 Projectiles . | . . . . Explosions 28 | . . . 28 Melee . | . . . . Knockbacks . | . . . . Impact . | . . . . Kinetic . | . . . . Secondary . | . . . . Self-Inflicted Damage 226 | . . . 226 Shots 6 | . . . 6 Rammed . | . . . . Targets Rammed . | . . . . Kicked . | . . . . Crushed . | . . . . Highest Temperature 123 | . 18 21 123 Average Temperature 23 | . 8 6 33 Received Heat Transfer 591 | . 30 156 405 Siege Activations . | . . . . Robots Corrupted . | . . . . Combat Hostiles . | . . . . Parts Fried . | . . . . Impact Corruptions . | . . . . Robots Melted . | . . . . Combat Hostiles . | . . . . Parts Melted . | . . . . Heat Transferred . | . . . . Parts Sabotaged . | . . . . Parts Stolen . | . . . . Parts Stripped . | . . . . Power Chain Reactions . | . . . . Missiles Intercepted . | . . . . Alert | -11 -10 -9 -8 ------- Run | Scr Mat Mat Mat Peak Influence 482 | . 108 365 482 Initial 69 | . . . 69 Average 132 | . 52 201 174 Maximum Alert Level 2 | . . 1 2 Low Security (%) 67 | 100 100 26 69 Level 1 29 | . . 73 19 Level 2 2 | . . . 10 Level 3 . | . . . . Level 4 . | . . . . Level 5 . | . . . . High Security . | . . . . Max Security . | . . . . Squads Dispatched 6 | . 1 . 5 Investigation . | . . . . Extermination . | . . . . Reinforcement 6 | . 1 . 5 Assault . | . . . . Garrison . | . . . . Intercept . | . . . . Searches Triggered . | . . . . Construction Impeded . | . . . . Haulers Reinforced . | . . . . Active Scanning Responses . | . . . . Cargo Convoy Interrupts . | . . . . Stealth | -11 -10 -9 -8 --------- Run | Scr Mat Mat Mat Distress Signals 2 | . . 1 1 Communications Jammed . | . . . . Distress Signals . | . . . . Times Spotted 49 | . 8 15 26 Peak Tracking Total 14 | . 3 8 14 Tactical Retreats 3 | . . 2 1 Traps | -11 -10 -9 -8 ------- Run | Scr Mat Mat Mat Traps Triggered 1 | . . 1 . Indirectly . | . . . . Trap Hack Attempts . | . . . . Triggered . | . . . . Disarmed . | . . . . Reprogrammed . | . . . . Reused . | . . . . Traps Extracted . | . . . . Installed . | . . . . Triggered . | . . . . Machines | -11 -10 -9 -8 ---------- Run | Scr Mat Mat Mat Machines Disabled 1 | . . 1 . Max in Single Turn 1 | . . 1 . Machines Sabotaged . | . . . . Garrisons Compromised . | . . . . Overloaded Fab Kills . | . . . . Hacking | -11 -10 -9 -8 --------- Run | Scr Mat Mat Mat Machines Accessed 5 | . 2 2 1 Terminals 5 | . 2 2 1 Fabricators . | . . . . Repair Stations . | . . . . Recycling Units . | . . . . Scanalyzers . | . . . . Garrison Access . | . . . . Total Hacks 11 | . 4 5 2 Successful 4 | . 2 2 . Failed 7 | . 2 3 2 Catastrophic 2 | . . 1 1 Database Lockouts . | . . . . Manual . | . . . . Terminals 11 | . 4 5 2 Fabricators . | . . . . Repair Stations . | . . . . Recycling Units . | . . . . Scanalyzers . | . . . . Garrison Access . | . . . . Terminal Hacks 4 | . 2 2 . Record 2 | . 2 . . Locate Traps 1 | . . 1 . Recall Investigation 1 | . . 1 . Fabricator Hacks . | . . . . Repair Station Hacks . | . . . . Recycling Unit Hacks . | . . . . Scanalyzer . | . . . . Garrison Access Hacks . | . . . . Unauthorized Hacks . | . . . . Terminals . | . . . . Fabricators . | . . . . Repair Stations . | . . . . Recycling Units . | . . . . Scanalyzers . | . . . . Garrison Access . | . . . . Data Cores Recovered . | . . . . Used . | . . . . Hacking Detections 4 | . 2 1 1 Full Trace Events . | . . . . Feedback Events . | . . . . Feedback Blocked . | . . . . Robot Schematics Acquired . | . . . . Robots Built . | . . . . Authchips . | . . . . Time . | . . . . Total Robot Build Rating . | . . . . Part Schematics Acquired . | . . . . Parts Built . | . . . . Authchips . | . . . . Time . | . . . . Total Part Build Rating . | . . . . Parts Repaired . | . . . . Time . | . . . . Parts Recycled . | . . . . Recycled Matter . | . . . . Retrieved Matter . | . . . . Retrieved Components . | . . . . Parts Scanalyzed . | . . . . Part Schematics Acquired . | . . . . Parts Damaged . | . . . . Bothacking | -11 -10 -9 -8 ------------ Run | Scr Mat Mat Mat Used RIF Installer . | . . . . Robots Hacked . | . . . . Non-combat . | . . . . Combat . | . . . . Robot Hacks Applied . | . . . . Relay Couplers Released . | . . . . Fabnet Peak Effective % . | . . . . Robots Rewired . | . . . . Allies Hacked . | . . . . Hacks Repelled . | . . . . Allies | -11 -10 -9 -8 -------- Run | Scr Mat Mat Mat Total Allies . | . . . . Largest Group . | . . . . Highest-Rated Group . | . . . . Highest-Rated Ally . | . . . . Total Orders . | . . . . Ally Attacks . | . . . . Total Damage . | . . . . Kills . | . . . . Allies Corrupted . | . . . . Allies Melted . | . . . . Intel | -11 -10 -9 -8 ------- Run | Scr Mat Mat Mat Robot Analysis Total . | . . . . Derelict Logs Recovered . | . . . . Drone Launches . | . . . . Drone Recoveries . | . . . . Exploration | -11 -10 -9 -8 ------------- Run | Scr Mat Mat Mat Turns Passed 1366 | 22 541 453 350 Spaces Moved 1118 | 15 530 340 233 Core 3 | 1 . . 2 Treads . | . . . . Legs 9 | 9 . . . Wheels 1106 | 5 530 340 231 Hover . | . . . . Flight . | . . . . Fastest Speed 90 | 90 90 95 95 Average Speed 100 | 118 91 108 107 Slowest Speed 650 | 250 105 125 650 Overloaded Moves . | . . . . Propulsion Burnouts . | . . . . Robots Hopped . | . . . . Cave-ins Triggered 1 | . . . 1 Exploration Rate (%) 25 | 2 52 25 24 Regions Visited 3 Branch Regions . Pre-discovered Areas . | . . . . Known Exits Taken . | . . . . Unknown Exits Taken 3 | 1 1 1 . Scrap Searched . | . . . . Spaces Dug . | . . . . Terrain Destroyed 61 | . . 11 50 Melee . | . . . . Projectile . | . . . . AOE 61 | . . 11 50 Terrain Rammed . | . . . . Walls Destroyed . | . . . . Machines Disabled . | . . . . Actions | -11 -10 -9 -8 --------- Run | Scr Mat Mat Mat Total 1252 | 17 570 380 285 Wait 4 | . 3 1 . Move 1115 | 14 529 339 233 Hop . | . . . . Pick Up 20 | . 10 5 5 Fast Attach 8 | . 5 1 2 Attach 17 | . 1 3 13 Detach 2 | . 1 . 1 Swap 8 | 3 . 3 2 Drop 10 | . 10 . . Fire 68 | . 11 28 29 Melee . | . . . . Ram . | . . . . Kick . | . . . . Crush . | . . . . Escape Stasis . | . . . . Rewire . | . . . . Trap . | . . . . Miscellaneous . | . . . . Route ------- -11/Scrapyard -10/Materials -9/Materials -8/Materials History --------- Turn | Location | Event 1 | -11/Scrapyard | Discovered new exit (range 1) 23 | -11/Scrapyard | Entered Materials 304 | -10/Materials | Build established: Mutant 357 | -10/Materials | Discovered new exit (range 11) 564 | -10/Materials | Entered another Materials area 564 | -9/Materials | Evolved 2 slots: Utility x2 1005 | -9/Materials | Discovered new exit (range 8) 1017 | -9/Materials | Entered another Materials area 1017 | -8/Materials | Evolved 2 slots: Utility x1, Weapon x1 1292 | -8/Materials | Lost 3 parts (1p2u) 1330 | -8/Materials | Core integrity fell below 50% 1356 | -8/Materials | Destroyed 11 combat bots 1358 | -8/Materials | Crushed by falling debris 1358 | -8/Materials | Core integrity fell below 20% 1367 | -8/Materials | Destroyed by G-47 Trooper with Particle Gun Last Messages --------------- 01353_ R-06 Scavenger collects Lgt. Assault Rifle. 01356_ H-61 Shepherd destroyed. 01356_ Switching to secondary target: G-47 Trooper. 01356_ U-05 Engineer lays Concrete. 01357_ R-06 Scavenger collects Imp. Deuterium Engine. 01357_ U-05 Engineer builds a Door. 01358_ The unstable cave ceiling collapses. 01358_ Crushed by falling debris. 01358_ Nuclear Core destroyed. 01358_ System corrupted by crushing effect (+1). 01359_ Acquired 14 matter. 01359_ U-05 Engineer builds a Wall. 01359_ Imp. Assault Rifle destroyed. 01361_ R-06 Scavenger collects Core Analyzer. 01361_ Shotgun destroyed. 01362_ U-05 Engineer lays Concrete. 01363_ U-05 Engineer builds a Door. 01363_ U-05 Engineer lays Concrete. 01364_ U-05 Engineer builds a Wall. 01365_ R-06 Scavenger collects Lgt. Assault Rifle. Map ----- +----------------------------------------------------+ | ????????????????# """ # # | | ???????????= ??# | | ???????????# #### # # | | ???????????# # | | ???????????# # | | ???????????# | | ?????????????? ##### # | | ???????????????????# | | ???????????????????#### # | | ??????????????????????# ! # | | ??????????????????????# ### # | | ??????????????????????# ###### | | ??????????????????????# #????? | | ??????????????????????# ####?? | | ???????????# ????? ? ?# # #?? | | ???????????# ????????# #??? | | ??????????## ???????# # #??? | | ??????????# ####### ###??? | | ??????????# #????? | | ??????????+ ##???? | | ??????????# u ##???? | | ??????????# ##+ ###u##???? | | ???????????# ??# #???? | | ????????????????# %r ! #???? | | ????????????????# ###?? | | ????????????????# @ #?? | | ????????????????### g#% ## | | ???????????# ggg ######? | | ???????????# ?##?#?? | | ???????????" """ ??????? | | ???????????????"" ??????? | | ???????????"???"" #?????? | | ??????????????? #?????? | | ?????????????? #?????? | | ????????????? """ #?????? | | ???????????????"" ####+#?#???? | | ????????????????" ??????????#? | | ???????????????? ???????????? | | ???????????????? ?????????#?? | | ?????????????????? ????????????? | | ???????????????????????????????? | | ???????????????????????????????? | | ???????????????????????????????? | | ???????????????????????????????? | | ???????????????????????????????? | | ???????????????????????????????? | | ???????????????????????????????? | | ???????????????????????????????? | | ???????????????????????????????? | | ???????????????????????????????? | +----------------------------------------------------+ Best States ------------- Heat Dissipation 31 Energy Generation 14 Energy Capacity 250 Matter Stores 300 Matter Capacity 400 Sight Range 16 Robot Scan Range 14 Terrain Scan Range 14 Terrain Scan Density 10 Armor Coverage 150 Power Shielding 33 Evasion (%) 50 Targeting Accuracy 6 Recoil Reduction 2 Item Schematics ----------------- None Robot Schematics ------------------ None Fabricated ------------ Nothing Alien Tech Used ----------------- None Achievements -------------- None Challenges ------------ None Game ------ Seed GyrokineticTransportFilter Manual? 0 Play Time 00:46:43 Cumulative 28.3 hours Start 2022.04.10 @ 12:35:40 End 2022.04.10 @ 13:59:51 Sessions 1 Manual Loads 0 Difficulty Rogue Special Mode None Game No. 37 Rogue 24 Adventurer 0 Explorer 13 Win Type - Total 0 Types 0/0/0/0/0/0/0/0/0 Lore% 23 Gallery% 23 Achievement% 20 Wizard Run 0 Options --------- ASCII 1 Keyboard 1 Movement Numpad Keybinds 0 Fullscreen 1 Font 18/SmallcapsGlow Map View 76x50 Tactical HUD 1 Map Filters NONE Filters NONE Steam 1 RUN: 956c5725-7937-488f-a732-61e2c875fda4